bitfinex/quotes_ETHUSD_20240530
["timestamp","ask_amount","ask_price","bid_price","bid_amount"]
[1717044322516,1.29789222,3796.3,3795.7,0.793]
[1717044322824,1.7114395,3796.3,3795.8,0.03537004]
[1717044323218,1.7114395,3796.3,3795.5,2.37381]
[1717044323518,1.7114395,3796.3,3795.5,1.58081]
[1717044323701,1.7114395,3796.3,3795.6,0.03537004]
[1717044324982,0.793,3796.1,3795.6,0.03537004]
[1717044325219,3.58099222,3796.0,3795.6,0.03537004]
[1717044325425,1.8680728,3795.9,3795.1,0.793]
[1717044325629,2.6610728,3795.9,3794.8,1.58106]
[1717044325794,0.49441728,3795.8,3795.2,0.03537004]
[1717044326002,1.29789222,3795.7,3794.9,0.793]
[1717044326200,1.29789222,3795.7,3795.3,0.03538105]
[1717044326402,1.29789222,3795.7,3794.9,0.793]
[1717044326609,1.29789222,3795.7,3795.4,0.03538105]
[1717044326812,0.31554901,3795.6,3794.9,0.793]
[1717044326988,0.31554901,3795.6,3795.5,0.03538105]
[1717044327184,0.31554901,3795.6,3794.9,0.793]
[1717044327387,1.36318058,3795.9,3795.5,0.03552045]
[1717044327636,1.36318058,3795.9,3794.9,0.793]
[1717044328152,1.36318058,3795.9,3795.0,0.03551311]
[1717044328962,1.29789222,3795.8,3795.0,0.03551311]
[1717044330114,1.86817953,3795.8,3795.0,0.03551311]
[1717044330316,1.29789222,3795.8,3795.0,0.03551311]
[1717044330748,0.49442795,3795.7,3795.0,0.03551311]
[1717044330949,1.29789222,3795.6,3795.0,0.03551311]
[1717044334353,2.3865,3795.5,3795.1,0.03559383]
[1717044334552,1.29789222,3795.4,3795.1,0.03559383]
[1717044334756,1.86818067,3795.4,3794.7,0.793]
[1717044334934,1.86818067,3795.4,3795.2,0.03559383]
[1717044335134,1.86818067,3795.4,3794.7,0.793]
[1717044335135,2.42239153,3795.4,3794.7,0.793]
[1717044335342,2.42239153,3795.4,3794.8,0.03559383]
[1717044335343,1.86818067,3795.4,3794.8,0.03559383]
[1717044335645,1.86818067,3795.4,3794.6,3.2532]
[1717044335832,1.86818067,3795.4,3794.7,0.03559383]
[1717044338083,1.86818067,3795.4,3794.5,0.793]
[1717044338310,0.793,3795.3,3794.3,4.6429]
[1717044338578,1.29789222,3795.2,3794.3,4.6429]
[1717044338736,1.29789222,3795.2,3794.4,0.0356672]
[1717044338936,2.3001,3795.1,3794.4,0.0356672]
[1717044339172,1.29789222,3795.0,3794.4,0.0356672]
[1717044339379,1.86818067,3795.0,3794.4,0.0356672]
[1717044339733,1.86818067,3795.0,3794.2,2.4115]
[1717044340079,1.86818067,3795.0,3794.3,0.0356672]
[1717044340283,0.54660487,3794.9,3794.1,0.793]
[1717044340483,1.29789222,3794.8,3794.2,0.0356672]
[1717044341043,1.29789222,3794.8,3794.2,0.793]
[1717044341239,1.29789222,3794.8,3794.3,0.0356672]
[1717044342928,2.2814,3794.7,3794.0,0.793]
[1717044343227,1.29789222,3794.6,3794.4,0.0356672]
[1717044343410,1.29789222,3794.6,3794.0,0.793]
[1717044343623,1.86818067,3794.6,3794.0,0.793]
[1717044343786,1.86818067,3794.6,3794.1,0.03582865]
[1717044345839,1.86835283,3794.6,3794.1,0.03582865]
[1717044345997,2.48269408,3794.6,3794.1,0.03582865]
[1717044346496,2.48269408,3794.6,3794.2,0.03588738]
[1717044346710,2.48269408,3794.6,3794.0,0.002404]
[1717044346935,2.48269408,3794.6,3794.3,0.03588738]
[1717044347109,2.48269408,3794.6,3794.0,0.002404]
[1717044347309,2.48269408,3794.6,3794.4,0.03588738]
[1717044347515,0.47640941,3794.5,3794.0,0.002404]
[1717044347714,1.29789222,3794.4,3794.1,0.03588738]
[1717044358372,2.2603,3794.3,3794.1,0.03588738]
[1717044358577,1.29789222,3794.2,3794.1,0.03588738]
[1717044358777,1.86837684,3794.2,3794.0,0.002404]
[1717044359007,0.49216768,3794.1,3794.0,0.002404]
[1717044359208,1.7900599,3794.1,3794.0,0.002404]
[1717044361918,4.1087599,3794.1,3794.0,0.002404]
[1717044362119,4.67926603,3794.1,3794.0,0.002404]
[1717044362275,5.47226603,3794.1,3794.0,0.002404]
[1717044364417,8.47226603,3794.1,3794.0,0.002404]
[1717044364719,9.02226603,3794.1,3794.0,0.002404]
[1717044370103,8.22926603,3794.1,3794.0,0.002404]
[1717044370307,9.02226603,3794.1,3794.0,0.002404]
[1717044370713,1.58166,3793.5,3792.0,0.9196863]
[1717044370902,1.29789222,3792.9,3792.1,0.03589546]
[1717044371096,1.29789222,3792.9,3792.0,0.9196863]
[1717044371305,0.793,3792.8,3792.0,0.1266863]
[1717044371596,1.29789222,3792.7,3792.0,0.1266863]
[1717044372001,1.29789222,3792.7,3792.1,0.03589546]
[1717044372212,1.29789222,3792.7,3792.0,0.1266863]
[1717044372213,0.20908922,3792.6,3792.0,0.1266863]
[1717044372497,1.29789222,3792.5,3792.1,0.03589546]
[1717044373345,3.59499222,3792.5,3792.1,0.03589546]
[1717044373924,0.57050613,3792.4,3792.1,0.03589546]
[1717044374122,1.29789222,3792.3,3792.1,0.03589546]
[1717044376728,1.29789222,3792.3,3792.0,0.1266863]
[1717044378758,1.79374206,3792.3,3792.0,0.1266863]
[1717044379283,1.79374206,3792.3,3792.1,0.03651983]
[1717044379773,0.793,3792.2,3792.0,0.1266863]
[1717044380073,1.29789222,3792.1,3792.0,0.1266863]
[1717044381410,3.54959222,3792.1,3792.0,0.1266863]
[1717044381612,8.26131475,3792.1,3792.0,0.1266863]
[1717044390642,9.05440494,3792.1,3792.0,0.1266863]
[1717044392826,9.60440494,3792.1,3792.0,0.1266863]
[1717044400764,8.81140494,3792.1,3792.0,0.1266863]
[1717044401111,9.60440494,3792.1,3792.0,0.1266863]
[1717044405810,6.00970494,3792.1,3792.0,0.1266863]
[1717044406035,7.13388089,3792.1,3792.0,0.1266863]
[1717044407491,7.68388089,3792.1,3792.0,0.1266863]
[1717044407688,7.11299222,3792.1,3792.0,0.1266863]
[1717044407892,7.68391969,3792.1,3792.0,0.1266863]
[1717044409703,5.41881969,3792.1,3792.0,0.1266863]
[1717044409904,4.03757664,3792.1,3792.0,0.1266863]
[1717044410109,7.03757664,3792.1,3792.0,0.1266863]
[1717044411761,9.46917664,3792.1,3792.0,0.1266863]
[1717044417781,9.46920725,3792.1,3792.0,0.1266863]
[1717044418166,7.03760725,3792.1,3792.0,0.1266863]
[1717044424970,6.24460725,3792.1,3792.0,0.1266863]
[1717044425157,7.03760725,3792.1,3792.0,0.1266863]
[1717044426618,7.35070795,3792.1,3792.0,0.1266863]
[1717044426783,12.20920725,3792.1,3792.0,0.1266863]
[1717044426984,12.48031469,3792.1,3792.0,0.1266863]
[1717044427205,15.13207552,3792.1,3792.0,0.1266863]
[1717044427608,15.48142014,3792.1,3792.0,0.1266863]
[1717044427812,15.48142014,3792.1,3792.0,6.3e-06]
[1717044428173,1.58279,3790.8,3790.2,2.2591]
[1717044428407,1.29789222,3790.3,3790.2,2.2591]
[1717044430418,1.29789222,3790.3,3790.2,2.29576567]
[1717044437221,1.29789222,3790.3,3790.2,0.03666567]
[1717044437397,1.29789222,3790.3,3789.9,2.474]
[1717044437716,1.29789222,3790.3,3790.0,0.03688992]
[1717044438280,1.29789222,3790.2,3790.0,0.03688992]
[1717044439301,1.29789222,3790.1,3790.0,0.03688992]
[1717044439709,1.29789222,3790.1,3789.9,2.474]
[1717044439913,1.29789222,3790.0,3789.9,2.474]
[1717044441948,1.29789222,3790.0,3789.9,2.51111427]
[1717044444924,1.04789222,3790.0,3789.9,2.51111427]
[1717044445624,1.04789222,3790.0,3789.9,2.474]
[1717044445829,1.04789222,3790.0,3789.9,2.51111427]
[1717044446032,1.04789222,3790.0,3789.9,0.03711427]
[1717044446492,1.04789222,3790.0,3789.5,2.3338]
[1717044446636,1.04789222,3790.0,3789.9,0.03711427]
[1717044446835,1.04789222,3790.0,3789.5,2.3338]
[1717044447128,1.04789222,3790.0,3789.9,0.03711427]
[1717044447369,1.04789222,3790.0,3789.5,2.3338]
[1717044447567,1.04789222,3790.0,3789.9,0.03711427]
[1717044447771,1.04789222,3790.0,3789.9,2.3299]
[1717044447971,1.04789222,3790.0,3789.9,2.36701427]
[1717044448575,1.04789222,3790.0,3789.9,0.03711427]
[1717044448745,1.04789222,3790.0,3789.9,2.52911427]
[1717044449075,1.04789222,3790.0,3789.9,0.03711427]
[1717044449571,1.04789222,3790.0,3789.6,2.492]
[1717044449870,1.29789222,3789.9,3789.6,3.285]
[1717044450288,1.29789222,3789.9,3789.7,0.03601948]
[1717044450652,1.29789222,3789.9,3789.6,2.492]
[1717044451050,1.29789222,3789.9,3789.7,0.03601948]
[1717044451455,1.29789222,3789.9,3789.6,2.492]
[1717044451652,1.29789222,3789.9,3789.8,0.03601948]
[1717044451964,1.29789222,3789.9,3789.6,2.492]
[1717044452375,1.29789222,3789.9,3789.7,0.03601948]
[1717044452994,1.29789222,3789.9,3789.6,2.492]
[1717044453372,1.29789222,3789.9,3789.7,0.03601948]
[1717044453880,1.29789222,3789.9,3789.6,2.492]
[1717044454283,1.29789222,3789.9,3789.7,0.03601948]
[1717044454460,1.29789222,3789.9,3789.7,0.03481883]
[1717044454780,1.29789222,3789.9,3789.6,2.37801948]
[1717044455153,1.29789222,3789.9,3789.7,0.03481883]
[1717044455645,1.29789222,3789.9,3789.6,2.37801948]
[1717044456145,1.29789222,3789.9,3789.7,0.03493645]
[1717044456553,1.29789222,3789.9,3789.6,2.37801948]
[1717044457186,1.29789222,3789.9,3789.7,0.03493645]
[1717044457542,1.29789222,3789.9,3789.6,2.37801948]
[1717044457892,1.29789222,3789.9,3789.7,0.03493645]
[1717044458590,1.29789222,3789.9,3789.4,3.0501]
[1717044458802,1.29689425,3789.9,3789.8,0.03493645]
[1717044458963,1.66764367,3789.9,3789.4,2.2571]
[1717044459148,1.29689425,3789.9,3789.4,3.0501]
[1717044459549,1.29689425,3789.9,3789.5,0.03494747]
[1717044459850,1.29689425,3789.9,3789.4,3.0501]
[1717044460049,1.29689425,3789.9,3789.6,0.03494747]
[1717044460241,1.29689425,3789.9,3789.4,2.2571]
[1717044460595,1.29689425,3789.9,3789.7,0.03507611]
[1717044460748,1.29689425,3789.9,3789.4,3.0501]
[1717044461095,1.29689425,3789.9,3789.5,0.03508346]
[1717044461461,1.29689425,3789.9,3789.4,3.0501]
[1717044461774,1.29689425,3789.9,3789.6,0.03508346]
[1717044462087,1.48370333,3789.9,3789.4,2.2571]
[1717044462386,1.29689425,3789.9,3789.4,2.2571]
[1717044462590,1.29689425,3789.9,3789.5,0.03506508]
[1717044462951,1.29689425,3789.9,3789.4,2.2571]
[1717044463151,1.29689425,3789.9,3789.6,0.03506508]
[1717044463463,1.29689425,3789.9,3789.4,2.2571]
[1717044463774,1.29689425,3789.9,3789.7,0.03509449]
[1717044463984,1.48370332,3789.9,3789.4,2.2571]
[1717044464380,1.48370332,3789.9,3789.5,0.03508713]
[1717044464596,1.29789222,3789.7,3789.5,0.03508713]
[1717044464770,1.29789222,3789.7,3789.0,3.0742]
[1717044464771,1.86908862,3789.7,3789.0,3.0742]
[1717044464967,1.86908862,3789.7,3789.6,0.03508713]
[1717044465155,1.86908862,3789.7,3789.0,3.0742]
[1717044465156,2.38354839,3789.7,3789.0,3.0742]
[1717044465859,1.29789222,3789.5,3789.1,0.793]
[1717044466755,1.29789222,3789.2,3788.5,2.4148]
[1717044466988,2.66892617,3789.7,3788.5,2.4148]
[1717044466989,1.29789222,3789.0,3788.9,0.793]
[1717044467188,1.29789222,3789.0,3788.9,3.2078]
[1717044471712,1.29789222,3789.0,3788.9,2.4148]
[1717044471885,1.29789222,3789.0,3788.9,3.2078]
[1717044472083,1.29789222,3789.0,3788.5,2.3214]
[1717044472296,1.29789222,3789.0,3788.9,3.1144]
[1717044474413,0.57122116,3789.4,3789.2,2.4272]
[1717044474576,1.29789222,3789.3,3789.2,2.4272]
[1717044474771,1.29789222,3789.3,3789.2,3.2202]
[1717044475345,1.29789222,3789.3,3789.2,3.25561432]
[1717044475482,0.57122116,3789.9,3789.3,1.58337]
[1717044475816,1.29789222,3789.8,3789.5,1.58331]
[1717044476042,1.29789222,3789.8,3789.7,3.1435]
[1717044476535,1.29789222,3789.8,3789.7,3.17865332]
[1717044480343,0.57122116,3790.4,3789.8,1.58316]
[1717044480545,1.29789222,3790.3,3790.0,1.58311]
[1717044480751,1.29789222,3790.3,3790.2,0.793]
[1717044481046,1.29789222,3790.3,3790.2,3.19332392]
[1717044484148,0.57104402,3790.4,3790.2,4.77634392]
[1717044484355,1.29789222,3790.4,3790.2,4.77634392]
[1717044484644,1.29789222,3790.4,3790.3,0.47763439]
[1717044484806,0.57104402,3790.9,3790.4,1.58291]
[1717044485002,1.29789222,3790.8,3790.5,2.3484]
[1717044485302,1.29789222,3790.8,3790.7,0.793]
[1717044485756,7.38,3791.5,3790.8,1.58275]
[1717044485757,0.57104402,3791.3,3790.8,1.58275]
[1717044485959,7.38,3791.5,3791.1,0.793]
[1717044485960,1.29789222,3791.2,3791.1,0.793]
[1717044487641,1.29789222,3791.2,3791.1,0.82737057]
[1717044488227,0.57104402,3791.4,3791.2,1.58261]
[1717044488562,1.29789222,3791.3,3791.2,3.91921]
[1717044488753,1.29789222,3791.3,3791.2,4.71221]
[1717044489830,1.29789222,3791.3,3791.2,4.74651078]
[1717044490038,0.5708562,3791.9,3791.2,5.22116186]
[1717044490278,1.29789222,3791.8,3791.4,1.5825]
[1717044490437,1.29789222,3791.8,3791.7,0.793]
[1717044490753,1.29789222,3791.8,3791.7,0.82722366]
[1717044492732,1.29789222,3791.8,3791.7,0.03422366]
[1717044492932,2.16568144,3791.8,3791.7,0.03422366]
[1717044493167,2.16568144,3791.8,3791.4,2.3755]
[1717044495552,2.16568144,3791.8,3791.6,0.793]
[1717044495944,1.29789222,3791.8,3791.4,1.5825]
[1717044496145,0.57087671,3792.3,3790.9,1.58273]
[1717044496146,1.29789222,3791.6,3790.9,1.58273]
[1717044496366,1.86886341,3791.6,3790.9,1.58273]
[1717044496615,0.41757634,3791.5,3791.0,0.03369469]
[1717044496744,1.29789222,3791.4,3791.0,0.03369469]
[1717044499385,1.29789222,3791.2,3791.0,0.03369469]
[1717044499689,1.29789222,3791.2,3790.3,3.89095]
[1717044499690,2.2847,3791.1,3790.6,0.793]
[1717044499987,1.65615144,3791.0,3790.6,0.793]
[1717044500301,2.22714873,3791.0,3790.6,0.793]
[1717044501183,2.22714873,3791.0,3790.3,1.58295]
[1717044501184,1.29789222,3790.9,3790.3,1.58295]
[1717044501391,1.29789222,3790.8,3790.5,0.793]
[1717044501690,0.52271487,3790.7,3790.3,0.793]
[1717044501895,2.3827,3790.5,3790.1,0.793]
[1717044502186,2.3827,3790.5,3789.8,1.58318]
[1717044502187,1.29789222,3790.4,3790.3,0.793]
[1717044505352,1.29789222,3790.4,3789.8,1.58318]
[1717044505552,1.53705705,3790.4,3790.2,0.793]
[1717044505959,1.53705705,3790.4,3790.3,0.03334046]
[1717044506389,1.53705705,3790.4,3790.2,0.793]
[1717044506798,1.53705705,3790.4,3790.3,0.03334046]
[1717044507188,1.53705705,3790.4,3790.3,0.793]
[1717044507388,1.29789222,3790.4,3790.3,2.37598]
[1717044508011,1.29789222,3790.4,3790.3,2.40934983]
[1717044508311,0.57103466,3790.8,3790.3,2.40934983]
[1717044508515,1.29789222,3790.7,3790.6,0.793]
[1717044508874,1.29789222,3790.7,3790.6,0.82635514]
[1717044510021,1.29789222,3790.7,3790.6,0.03335514]
[1717044510184,1.29789222,3790.7,3790.6,0.82635514]
[1717044510385,1.29789222,3790.7,3790.6,0.793]
[1717044510580,1.29789222,3790.7,3790.6,0.03335514]
[1717044510781,3.70349222,3790.7,3790.6,0.03335514]
[1717044510982,4.6448761,3790.7,3790.4,0.793]
[1717044511216,4.07384144,3790.7,3790.6,0.03330006]
[1717044511406,4.64487686,3790.7,3790.2,0.793]
[1717044511604,0.57103542,3790.6,3790.2,0.793]
[1717044511806,1.29789222,3790.5,3790.3,0.0334616]
[1717044511985,1.29789222,3790.5,3790.4,0.793]
[1717044512729,1.29789222,3790.5,3790.4,0.8264616]
[1717044516518,1.29789222,3790.5,3790.4,0.0334616]
[1717044516724,1.29789222,3790.5,3790.4,0.8264616]
[1717044516960,1.29789222,3790.5,3790.4,0.793]
[1717044517161,1.29789222,3790.5,3790.4,0.82639918]
[1717044517348,1.29789222,3790.5,3790.4,0.03339918]
[1717044519626,1.29789222,3790.5,3790.4,0.82639918]
[1717044525550,1.29789222,3790.5,3790.4,0.03339918]
[1717044525752,1.29789222,3790.5,3790.4,0.82639918]
[1717044526071,1.29789222,3790.5,3790.4,0.82657911]
[1717044528980,1.29789222,3790.5,3790.4,0.03357911]
[1717044529139,1.29789222,3790.5,3790.3,0.793]
[1717044529340,1.29789222,3790.5,3790.4,0.03357911]
[1717044529578,1.48478569,3790.5,3790.4,0.03357911]
[1717044529981,1.48478569,3790.5,3790.1,0.793]
[1717044530190,2.271,3790.4,3790.1,0.793]
[1717044530351,1.29789222,3790.3,3790.2,0.82657911]
[1717044530544,1.86893473,3790.3,3790.2,0.82657911]
[1717044530746,1.86893473,3790.3,3790.2,0.793]
[1717044532936,1.86893473,3790.3,3790.1,0.793]
[1717044533310,1.869008,3790.3,3790.1,0.793]
[1717044540355,1.29789222,3790.3,3790.1,0.793]
[1717044540525,1.8689843,3790.3,3790.1,0.793]
[1717044541524,3.67395222,3790.2,3788.6,1.58369]
[1717044541851,3.67395222,3790.2,3789.0,0.793]
[1717044541852,1.29789222,3789.5,3789.0,0.793]
[1717044542208,1.29789222,3789.5,3789.2,0.793]
[1717044544359,1.29789222,3789.5,3789.4,0.793]
[1717044544557,0.57109208,3790.4,3789.5,1.58329]
[1717044544762,1.29789222,3790.3,3789.9,0.793]
[1717044545268,1.29789222,3790.3,3790.0,0.03196013]
[1717044546516,1.29789222,3790.3,3789.9,0.793]
[1717044547218,2.4948,3789.9,3789.0,3.91831]
[1717044547414,1.29789222,3789.8,3789.1,0.793]
[1717044547619,1.29789222,3789.8,3789.3,0.793]
[1717044547620,1.8689843,3789.8,3789.3,0.793]
[1717044547933,1.8689843,3789.8,3789.5,0.793]
[1717044548114,1.48479065,3789.8,3789.5,0.793]
[1717044549242,1.48479065,3789.8,3789.0,1.58351]
[1717044549650,1.48479065,3789.8,3789.3,0.793]
[1717044550056,1.48479065,3789.8,3789.4,0.0317434]
[1717044550368,1.48479065,3789.8,3789.3,0.793]
[1717044550668,0.20559944,3789.7,3789.5,0.0317434]
[1717044550845,1.29789222,3789.6,3789.3,0.793]
[1717044551243,1.29789222,3789.6,3789.4,0.0317434]
[1717044551551,1.29789222,3789.6,3789.3,0.793]
[1717044551936,1.29789222,3789.6,3789.4,0.0317434]
[1717044552137,1.29789222,3789.6,3789.3,0.793]
[1717044552335,1.29789222,3789.6,3789.5,0.0317434]
[1717044552539,1.46693123,3789.6,3789.3,0.793]
[1717044553004,1.46693123,3789.6,3789.4,0.0317434]
[1717044553577,1.46693123,3789.6,3789.3,0.793]
[1717044553771,1.46693123,3789.6,3789.5,0.0317434]
[1717044553949,1.46693123,3789.6,3789.3,0.793]
[1717044554472,1.46693123,3789.6,3789.4,0.0317434]
[1717044554976,1.46693123,3789.6,3789.3,0.793]
[1717044555178,2.46514291,3789.5,3788.4,3.91044]
[1717044555345,3.03634664,3789.5,3789.4,0.0319234]
[1717044555675,3.03634664,3789.5,3789.1,0.793]
[1717044555875,1.17142389,3789.4,3788.4,3.91044]
[1717044556039,1.17142389,3789.4,3789.2,0.0319234]
[1717044556239,1.74262762,3789.4,3789.1,0.793]
[1717044556561,1.74262762,3789.4,3789.2,0.0319234]
[1717044556873,1.74262762,3789.4,3789.1,0.793]
[1717044557073,1.74262762,3789.4,3788.4,3.91044]
[1717044557251,1.84845849,3789.3,3789.2,0.0319234]
[1717044557574,1.84845849,3789.3,3789.1,0.793]
[1717044557779,1.84845849,3789.3,3789.2,0.0319234]
[1717044557940,2.41966222,3789.3,3789.1,0.793]
[1717044558281,0.6056229,3789.2,3789.1,0.793]
[1717044558460,1.90351512,3789.2,3789.1,0.793]
[1717044561177,1.29789222,3789.2,3789.1,0.793]
[1717044564764,1.29789222,3789.2,3788.8,1.58357]
[1717044564974,1.29789222,3789.1,3789.0,0.793]
[1717044567559,2.3654,3789.0,3788.3,1.58381]
[1717044567763,1.29789222,3788.9,3788.7,0.793]
[1717044568081,1.86913538,3788.9,3788.7,0.793]
[1717044571558,0.57124316,3788.9,3788.8,2.356]
[1717044571753,7.38,3789.7,3789.0,1.58351]
[1717044571754,0.57124316,3789.6,3789.0,1.58351]
[1717044571990,1.29789222,3789.5,3789.0,1.58351]
[1717044572201,1.29789222,3789.5,3789.4,0.793]
[1717044572919,1.29789222,3789.5,3789.4,0.82538262]
[1717044573375,1.29789222,3789.5,3789.4,0.793]
[1717044574175,1.29789222,3789.5,3789.4,0.82538262]
[1717044575904,0.57115818,3790.0,3789.5,1.58328]
[1717044576204,1.29789222,3789.9,3789.7,1.58323]
[1717044576411,1.29789222,3789.9,3789.8,0.793]
[1717044576563,1.29789222,3789.9,3789.8,0.82484994]
[1717044576958,0.57115818,3790.1,3789.9,1.58315]
[1717044577206,1.29789222,3790.0,3789.9,1.58315]
[1717044577400,1.29789222,3790.0,3789.9,2.37615]
[1717044580119,1.29789222,3790.0,3789.9,2.40802198]
[1717044580424,1.29789222,3790.0,3789.9,1.61502198]
[1717044580715,1.29789222,3790.0,3789.9,2.40802198]
[1717044580919,1.29789222,3790.0,3789.9,2.64882418]
[1717044582879,1.29789222,3790.0,3789.9,4.96192418]
[1717044584560,1.29789222,3790.0,3789.9,6.07692418]
[1717044585840,0.5710214,3790.6,3789.9,6.07692418]
[1717044586048,1.29789222,3790.5,3789.9,6.07692418]
[1717044587533,1.29789222,3790.5,3789.9,5.83612198]
[1717044589823,1.29789222,3790.5,3789.9,3.52302198]
[1717044590854,3.67739222,3790.5,3789.9,3.52302198]
[1717044591153,0.57102509,3790.4,3789.9,3.52302198]
[1717044591480,1.29789222,3790.3,3789.9,3.52302198]
[1717044593492,1.29789222,3790.3,3789.9,1.61502198]
[1717044594868,0.57105677,3790.4,3789.9,1.61502198]
[1717044594869,1.72273712,3790.2,3789.9,1.61502198]
[1717044597964,1.72273712,3790.2,3789.9,0.03187198]
[1717044598340,1.29789222,3790.1,3789.9,0.03187198]
[1717044598525,1.29789222,3790.1,3789.4,1.58336]
[1717044598526,2.3975,3790.0,3789.4,1.58336]
[1717044598724,1.70991593,3789.9,3789.5,0.03151203]
[1717044598969,2.2809727,3789.9,3789.4,1.58336]
[1717044599174,2.2809727,3789.9,3789.6,0.03151203]
[1717044599387,2.2809727,3789.9,3789.4,1.58336]
[1717044599566,2.2809727,3789.9,3789.7,0.03151203]
[1717044599765,0.46784727,3789.8,3789.4,1.58336]
[1717044599970,1.29789222,3789.7,3789.5,0.03151203]
[1717044600158,1.29789222,3789.7,3789.4,1.58336]
[1717044600359,1.29789222,3789.7,3789.5,0.03151203]
[1717044600582,1.29789222,3789.7,3789.4,1.58336]
[1717044600894,1.29789222,3789.7,3789.6,0.03151203]
[1717044601498,1.29789222,3789.7,3789.4,1.58336]
[1717044601652,1.29789222,3789.7,3789.6,0.03151203]
[1717044601852,1.29789222,3789.7,3789.4,1.58336]
[1717044602054,1.29789222,3789.7,3789.6,0.03151203]
[1717044602279,1.29789222,3789.7,3789.4,1.58336]
[1717044602482,1.29789222,3789.7,3789.6,0.03151203]
[1717044602700,1.29789222,3789.7,3789.4,1.58336]
[1717044602892,1.72454652,3789.7,3789.6,0.03151203]
[1717044603092,1.72454652,3789.7,3789.5,0.0317728]
[1717044603493,1.72454652,3789.7,3789.4,1.58336]
[1717044604359,1.72454652,3789.7,3789.6,0.795]
[1717044604792,1.72454652,3789.7,3788.9,1.58356]
[1717044604997,2.63656973,3789.6,3789.4,0.795]
[1717044605296,1.29789222,3789.5,3789.4,0.795]
[1717044605494,1.86904298,3789.5,3789.4,0.795]
[1717044607266,1.29789222,3789.5,3789.4,3.1886]
[1717044607396,1.29789222,3789.5,3789.4,3.2203728]
[1717044609431,1.29789222,3789.5,3789.4,0.8267728]
[1717044612844,0.57115076,3790.2,3789.6,1.58326]
[1717044613001,1.29789222,3790.1,3789.6,1.58326]
[1717044613197,1.29789222,3790.1,3790.0,0.795]
[1717044615451,1.29789222,3790.1,3790.0,0.82665893]
[1717044627200,1.24789222,3790.1,3790.0,0.03165893]
[1717044627397,1.24789222,3790.1,3790.0,0.795]
[1717044627612,1.24789222,3790.1,3790.0,0.82657815]
[1717044631953,1.24789222,3790.1,3790.0,0.8536255]
[1717044633410,1.24789222,3790.1,3790.0,1.18730805]
[1717044635354,1.24789222,3790.1,3790.0,0.0586255]
[1717044635550,1.24789222,3790.1,3790.0,0.8536255]
[1717044635752,1.24789222,3790.1,3790.0,0.795]
[1717044635918,1.24789222,3790.1,3790.0,0.8536365]
[1717044637581,1.24789222,3790.1,3790.0,0.0586365]
[1717044637785,1.24789222,3790.1,3790.0,0.795]
[1717044637971,1.24789222,3790.1,3790.0,0.8536365]
[1717044641981,1.24789222,3790.1,3790.0,3.1585365]
[1717044642285,0.57103024,3790.7,3790.2,1.58302]
[1717044642606,1.29789222,3790.6,3790.2,1.58302]
[1717044642909,1.29789222,3790.6,3790.5,0.795]
[1717044643199,1.29789222,3790.6,3790.5,0.8536365]
[1717044644096,1.29789222,3790.6,3790.5,0.0586365]
[1717044644296,1.29789222,3790.6,3790.5,0.8536365]
[1717044644466,1.29789222,3790.6,3790.5,0.795]
[1717044644810,1.29789222,3790.6,3790.5,0.85346759]
[1717044647026,1.29789222,3790.6,3790.5,0.05846759]
[1717044647190,2.23600168,3790.6,3790.2,1.58302]
[1717044647382,2.23600168,3790.6,3790.3,0.795]
[1717044648577,2.23600168,3790.6,3790.4,0.05835007]
[1717044648780,2.23600168,3790.6,3790.3,0.795]
[1717044649009,2.23600168,3790.6,3790.4,0.05835007]
[1717044649504,2.23600168,3790.6,3790.3,0.795]
[1717044649914,2.23600168,3790.6,3790.4,0.05835007]
[1717044650116,0.46089017,3790.5,3790.4,0.05835007]
[1717044650416,1.75878239,3790.5,3790.2,0.795]
[1717044650709,1.29789222,3790.4,3790.2,0.795]
[1717044651072,1.29789222,3790.4,3790.3,0.05835007]
[1717044651913,3.59839222,3790.4,3790.3,0.05835007]
[1717044652108,4.52929062,3790.4,3790.0,0.795]
[1717044652407,0.57105918,3790.3,3790.0,0.795]
[1717044652610,1.29789222,3790.2,3790.0,0.795]
[1717044652822,1.29789222,3790.2,3790.1,0.05835007]
[1717044653389,1.29789222,3790.2,3789.8,0.795]
[1717044653390,2.3005,3790.1,3789.8,0.795]
[1717044653585,1.29789222,3790.0,3789.7,1.58323]
[1717044653903,1.8689514,3790.0,3789.8,0.795]
[1717044655695,1.29789222,3790.0,3789.9,0.05835007]
[1717044659638,0.57105918,3790.6,3790.1,1.58306]
[1717044659936,1.29789222,3790.5,3790.1,1.58306]
[1717044660253,1.29789222,3790.5,3790.4,0.795]
[1717044661036,1.29789222,3790.5,3790.4,0.85372099]
[1717044667278,1.29789222,3790.5,3790.4,0.05872099]
[1717044667484,1.29789222,3790.5,3790.4,0.85372099]
[1717044667774,1.29789222,3790.5,3790.4,0.795]
[1717044670579,1.29789222,3790.5,3790.1,1.58306]
[1717044670738,1.29789222,3790.5,3790.4,0.795]
[1717044671379,2.4416,3790.4,3790.1,1.58306]
[1717044671551,1.29789222,3790.3,3790.1,1.58306]
[1717044671880,1.86891989,3790.3,3790.2,0.05845289]
[1717044672083,1.86891989,3790.3,3790.2,0.85345289]
[1717044672275,1.86891989,3790.3,3790.2,0.795]
[1717044672480,1.86891989,3790.3,3790.2,0.85345289]
[1717044674969,1.86897491,3790.3,3790.2,0.85345289]
[1717044675171,1.29789222,3790.3,3790.2,0.85345289]
[1717044676969,1.29789222,3790.3,3790.2,1.09710718]
[1717044677313,0.57108269,3790.8,3790.3,1.58295]
[1717044677606,1.29789222,3790.7,3790.3,1.58295]
[1717044677809,1.29789222,3790.7,3790.6,0.795]
[1717044677999,1.29789222,3790.7,3790.6,0.85369896]
[1717044681611,1.29789222,3790.7,3790.6,1.09736386]
[1717044685057,0.57108269,3791.1,3790.7,3.9562]
[1717044685263,1.86897491,3791.1,3791.0,0.795]
[1717044685437,1.29789222,3791.1,3791.0,0.795]
[1717044685634,1.29789222,3791.1,3791.0,1.33429118]
[1717044686349,1.29789222,3791.1,3791.0,0.53929118]
[1717044686555,1.29789222,3791.1,3791.0,0.85333543]
[1717044692975,1.29789222,3791.1,3791.0,0.05833543]
[1717044693272,1.29789222,3791.1,3791.0,0.795]
[1717044693436,1.29789222,3791.1,3791.0,0.85305639]
[1717044708277,1.29789222,3791.1,3791.0,0.05805639]
[1717044708496,1.29789222,3791.1,3791.0,0.795]
[1717044708667,1.29789222,3791.1,3791.0,0.85306372]
[1717044711373,1.29789222,3791.1,3791.0,1.09665009]